[Event "Championnat du monde jeunes U12F"]
[Date "2024.11.15"]
[White "Chovanec, Alice"]
[Black "Qiu, Laurie"]
[WhiteElo "1694"]
[BlackElo "1994"]
[Round "1.1"]
[Result "1/2-1/2"]
[TimeControl "5400+30"]

1. d4 {[%clk 1:30:57]} 1... d5 {[%clk 1:30:51]} 2. c4 {[%clk 1:31:17]} 2... e6
{[%clk 1:31:16]} 3. Nc3 {[%clk 1:31:36]} 3... Nf6 {[%clk 1:31:38]} 4. cxd5
{[%clk 1:31:54]} 4... exd5 {[%clk 1:31:59]} 5. Bg5 {[%clk 1:32:11]} 5... c6
{[%clk 1:32:19]} 6. e3 {[%clk 1:32:28]} 6... Be7 {[%clk 1:32:31]} 7. Bd3 {[%clk
1:32:34]} 7... O-O {[%clk 1:32:47]} 8. Nge2 {[%clk 1:32:35]} 8... Nbd7 {[%clk
1:32:58]} 9. Qc2 {[%clk 1:32:20]} 9... Re8 {[%clk 1:33:05]} 10. O-O {[%clk
1:31:18]} 10... Nf8 {[%clk 1:32:24]} 11. f3 {[%clk 1:30:22]} 11... g6 {[%clk
1:31:31]} 12. e4 {[%clk 1:26:58]} 12... dxe4 {[%clk 1:29:54]} 13. fxe4 {[%clk
1:26:50]} 13... Ng4 {[%clk 1:26:47]} 14. Bxe7 {[%clk 1:25:22]} 14... Rxe7 {[%clk
1:25:55]} 15. Qd2 {[%clk 1:23:36]} 15... Qc7 {[%clk 1:01:56]} 16. e5 {[%clk
1:19:09]} 16... Kg7 {[%clk 0:59:19]} 17. h3 {[%clk 1:16:21]} 17... Nh6 {[%clk
0:59:35]} 18. Qg5 {[%clk 1:14:36]} 18... Ng8 {[%clk 0:59:04]} 19. Nf4 {[%clk
1:06:13]} 19... Ne6 {[%clk 0:55:38]} 20. Nxe6+ {[%clk 1:05:11]} 20... Bxe6
{[%clk 0:55:44]} 21. Ne4 {[%clk 1:03:28]} 21... Qb6 {[%clk 0:52:20]} 22. Qe3
{[%clk 0:57:31]} 22... Rd8 {[%clk 0:45:11]} 23. Nd6 {[%clk 0:55:04]} 23... Bxh3
{[%clk 0:35:02]} 24. Qxh3 {[%clk 0:42:53]} 24... Qxd4+ {[%clk 0:35:24]} 25. Kh1
{[%clk 0:41:10]} 25... Qxe5 {[%clk 0:33:40]} 26. Nxf7 {[%clk 0:22:47]} 26...
Rxf7 {[%clk 0:29:24]} 27. Rxf7+ {[%clk 0:23:08]} 27... Kxf7 {[%clk 0:29:46]} 28.
Qxh7+ {[%clk 0:23:02]} 28... Qg7 {[%clk 0:26:32]} 29. Bxg6+ {[%clk 0:19:48]}
29... Kf8 {[%clk 0:27:00]} 30. Rf1+ {[%clk 0:19:46]} 30... Nf6 {[%clk 0:27:26]}
31. Qh4 {[%clk 0:19:08]} 31... Rd6 {[%clk 0:26:27]} 32. Qg3 {[%clk 0:16:16]}
32... Qe7 {[%clk 0:23:15]} 33. Kg1 {[%clk 0:13:37]} 33... Re6 {[%clk 0:21:38]}
34. Qg5 {[%clk 0:10:15]} 34... Re1 {[%clk 0:17:44]} 35. Rxe1 {[%clk 0:07:20]}
35... Qxe1+ {[%clk 0:18:06]} 36. Kh2 {[%clk 0:07:47]} 36... Qe7 {[%clk 0:16:40]}
37. Qf4 {[%clk 0:07:25]} 37... Kg7 {[%clk 0:16:12]} 38. Bf5 {[%clk 0:07:46]}
38... Nd5 {[%clk 0:15:31]} 39. Qg4+ {[%clk 0:08:03]} 39... Kf6 {[%clk 0:14:49]}
40. Be4 {[%clk 0:07:44]} 40... Qe5+ {[%clk 0:14:15]} 41. Kh1 {[%clk 0:06:52]}
41... Qxb2 {[%clk 0:13:50]} 42. Qf5+ {[%clk 0:07:08]} 42... Ke7 {[%clk 0:12:53]}
43. Bxd5 {[%clk 0:05:37]} 43... Qa1+ {[%clk 0:11:12]} 44. Kh2 {[%clk 0:05:50]}
44... Qh8+ {[%clk 0:11:13]} 45. Kg3 {[%clk 0:05:53]} 45... cxd5 {[%clk 0:09:42]}
46. Qxd5 {[%clk 0:06:14]} 46... Qc3+ {[%clk 0:09:58]} 47. Kh4 {[%clk 0:06:27]}
47... Qf6+ {[%clk 0:06:46]} 48. Kg4 {[%clk 0:04:22]} 48... Qg6+ {[%clk 0:04:46]}
1/2-1/2

[Variant "Standard"]
[Site "Europe Echecs"]

[Event "Championnat du monde jeunes U12F"]
[Date "2024.11.15"]
[White "Ejsymont, Blanka"]
[Black "Abylaykyzy, Bibisara"]
[WhiteElo "1945"]
[BlackElo "1694"]
[Round "1.2"]
[Result "1-0"]
[TimeControl "5400+30"]

1. e4 {[%clk 1:30:57]} 1... c5 {[%clk 1:30:57]} 2. Nc3 {[%clk 1:31:16]} 2... Nc6
{[%clk 1:31:23]} 3. Nge2 {[%clk 1:31:10]} 3... d6 {[%clk 1:31:30]} 4. d4 {[%clk
1:31:04]} 4... cxd4 {[%clk 1:31:56]} 5. Nxd4 {[%clk 1:31:30]} 5... Nf6 {[%clk
1:32:23]} 6. f3 {[%clk 1:28:37]} 6... a6 {[%clk 1:32:35]} 7. Bg5 {[%clk
1:23:10]} 7... e6 {[%clk 1:28:33]} 8. Qd2 {[%clk 1:22:13]} 8... Bd7 {[%clk
1:28:59]} 9. Bc4 {[%clk 1:16:54]} 9... Be7 {[%clk 1:27:58]} 10. Bb3 {[%clk
1:14:36]} 10... h6 {[%clk 1:25:45]} 11. Be3 {[%clk 1:14:06]} 11... Na5 {[%clk
1:22:47]} 12. g4 {[%clk 1:08:36]} 12... Qc7 {[%clk 1:21:51]} 13. h4 {[%clk
1:05:23]} 13... Nc4 {[%clk 1:20:14]} 14. Bxc4 {[%clk 1:04:14]} 14... Qxc4 {[%clk
1:20:36]} 15. O-O-O {[%clk 1:02:22]} 15... O-O-O {[%clk 1:17:13]} 16. Nb3 {[%clk
0:59:06]} 16... Kb8 {[%clk 1:13:59]} 17. Bf2 {[%clk 0:53:56]} 17... Qc7 {[%clk
1:00:11]} 18. Qd4 {[%clk 0:48:40]} 18... b5 {[%clk 0:56:37]} 19. a4 {[%clk
0:45:24]} 19... Rc8 {[%clk 0:48:12]} 20. Qb4 {[%clk 0:41:01]} 20... Rhe8 {[%clk
0:42:09]} 21. axb5 {[%clk 0:28:13]} 21... axb5 {[%clk 0:39:01]} 22. Qd4 {[%clk
0:23:59]} 22... d5 {[%clk 0:16:24]} 23. Rd2 {[%clk 0:21:14]} 23... e5 {[%clk
0:13:47]} 24. Qd3 {[%clk 0:18:26]} 24... d4 {[%clk 0:12:08]} 25. Ne2 {[%clk
0:12:57]} 25... Qc6 {[%clk 0:08:14]} 26. g5 {[%clk 0:09:08]} 26... Be6 {[%clk
0:03:54]} 27. Nexd4 {[%clk 0:06:42]} 27... exd4 {[%clk 0:03:28]} 28. Qxd4 {[%clk
0:05:02]} 28... Qa6 {[%clk 0:03:26]} 29. Kb1 {[%clk 0:01:55]} 29... Red8 {[%clk
0:01:12]} 30. Qe5+ {[%clk 0:01:13]} 30... Bd6 {[%clk 0:01:15]} 31. Rxd6 {[%clk
0:00:51]} 31... Rxd6 {[%clk 0:00:48]} 32. gxf6 {[%clk 0:00:35]} 32... gxf6
{[%clk 0:01:08]} 33. Qf4 {[%clk 0:00:34]} 33... Bxb3 {[%clk 0:01:08]} 34. cxb3
{[%clk 0:00:58]} 34... Ka8 {[%clk 0:01:05]} 35. Qxh6 {[%clk 0:00:39]} 35... b4
{[%clk 0:00:44]} 36. Qe3 {[%clk 0:00:37]} 36... Rd3 {[%clk 0:00:36]} 37. Qb6
{[%clk 0:00:33]} 37... Qxb6 {[%clk 0:01:00]} 38. Bxb6 {[%clk 0:00:59]} 1-0

[Variant "Standard"]
[Site "Europe Echecs"]

[Event "Championnat du monde jeunes U12F"]
[Date "2024.11.15"]
[White "Messali Anger, Ilyana"]
[Black "Pratitee Bordoloi"]
[WhiteElo "1687"]
[BlackElo "1929"]
[Round "1.3"]
[Result "0-1"]
[TimeControl "5400+30"]

1. e4 {[%clk 1:30:49]} 1... c6 {[%clk 1:30:44]} 2. d4 {[%clk 1:30:34]} 2... d5
{[%clk 1:31:02]} 3. Nc3 {[%clk 1:30:16]} 3... dxe4 {[%clk 1:31:22]} 4. Nxe4
{[%clk 1:29:43]} 4... Nf6 {[%clk 1:31:40]} 5. Nxf6+ {[%clk 1:29:05]} 5... exf6
{[%clk 1:31:59]} 6. c3 {[%clk 1:28:10]} 6... Bd6 {[%clk 1:32:17]} 7. Bd3 {[%clk
1:27:24]} 7... O-O {[%clk 1:32:12]} 8. Ne2 {[%clk 1:25:43]} 8... Re8 {[%clk
1:32:06]} 9. O-O {[%clk 1:24:16]} 9... Nd7 {[%clk 1:30:49]} 10. Ng3 {[%clk
1:21:59]} 10... Nf8 {[%clk 1:28:20]} 11. f4 {[%clk 1:18:22]} 11... Ng6 {[%clk
1:21:06]} 12. f5 {[%clk 1:12:26]} 12... Ne7 {[%clk 1:20:24]} 13. Qh5 {[%clk
0:53:40]} 13... Nd5 {[%clk 1:05:47]} 14. Ne4 {[%clk 0:38:42]} 14... Bf8 {[%clk
1:02:51]} 15. Qh4 {[%clk 0:24:35]} 15... b6 {[%clk 0:58:27]} 16. Rf3 {[%clk
0:15:51]} 16... Kh8 {[%clk 0:52:04]} 17. Rh3 {[%clk 0:08:31]} 17... Bxf5 {[%clk
0:40:41]} 18. g4 {[%clk 0:07:26]} 18... Rxe4 {[%clk 0:36:11]} 19. Bxe4 {[%clk
0:05:31]} 19... Bxe4 {[%clk 0:36:37]} 20. Bd2 {[%clk 0:04:15]} 20... Bd6 {[%clk
0:34:14]} 21. Rf1 {[%clk 0:02:35]} 21... Qd7 {[%clk 0:32:17]} 22. Re1 {[%clk
0:01:21]} 22... Bg6 {[%clk 0:32:35]} 23. Kh1 {[%clk 0:00:43]} 23... b5 {[%clk
0:32:15]} 24. b3 {[%clk 0:00:33]} 24... Nb6 {[%clk 0:29:39]} 25. Rhe3 {[%clk
0:00:35]} 25... c5 {[%clk 0:27:18]} 26. dxc5 {[%clk 0:00:32]} 26... Qc6+ {[%clk
0:27:03]} 27. Kg1 {[%clk 0:00:34]} 27... Bxc5 {[%clk 0:27:19]} 28. Kf1 {[%clk
0:00:35]} 28... Bxe3 {[%clk 0:27:37]} 29. Rxe3 {[%clk 0:00:53]} 29... Qh1+
{[%clk 0:27:22]} 30. Kf2 {[%clk 0:00:53]} 30... Rd8 {[%clk 0:26:48]} 31. Be1
{[%clk 0:00:53]} 31... Nd5 {[%clk 0:25:10]} 32. Rh3 {[%clk 0:00:40]} 32... Nf4
{[%clk 0:24:59]} 33. Rg3 {[%clk 0:00:43]} 33... Nd3+ {[%clk 0:24:57]} 34. Ke3
{[%clk 0:00:37]} 34... Qxe1+ {[%clk 0:27:10]} 35. Kf3 {[%clk 0:01:17]} 35...
Qe4# {[%clk 0:27:32]} 0-1

[Variant "Standard"]
[Site "Europe Echecs"]

[Event "Championnat du monde jeunes U12F"]
[Date "2024.11.15"]
[White "Hanya Shah"]
[Black "Chichinadze, Anastasia"]
[WhiteElo "1888"]
[BlackElo "1682"]
[Round "1.4"]
[Result "1/2-1/2"]
[TimeControl "5400+30"]

1. c4 {[%clk 1:30:56]} 1... c5 {[%clk 1:30:56]} 2. Nc3 {[%clk 1:31:13]} 2... g6
{[%clk 1:31:23]} 3. g3 {[%clk 1:31:27]} 3... Bg7 {[%clk 1:31:47]} 4. Bg2 {[%clk
1:31:51]} 4... Nc6 {[%clk 1:32:12]} 5. Nf3 {[%clk 1:32:15]} 5... Nf6 {[%clk
1:32:30]} 6. O-O {[%clk 1:32:23]} 6... O-O {[%clk 1:32:56]} 7. d4 {[%clk
1:32:49]} 7... cxd4 {[%clk 1:30:51]} 8. Nxd4 {[%clk 1:33:14]} 8... a6 {[%clk
1:20:59]} 9. Bg5 {[%clk 1:32:30]} 9... Qb6 {[%clk 1:15:09]} 10. Nxc6 {[%clk
1:25:19]} 10... dxc6 {[%clk 1:15:18]} 11. Qc2 {[%clk 1:18:18]} 11... Qc5 {[%clk
0:54:30]} 12. Bxf6 {[%clk 1:15:08]} 12... exf6 {[%clk 0:52:47]} 13. Na4 Qe5
{[%clk 0:47:27]} 14. Rad1 {[%clk 0:47:50]} 14... Bg4 {[%clk 0:41:16]} 15. Rfe1
{[%clk 0:41:46]} 15... Rad8 {[%clk 0:35:41]} 16. c5 Qe6 {[%clk 0:26:16]} 17. b3
{[%clk 0:24:29]} 17... Bh3 {[%clk 0:25:58]} 18. Nb6 {[%clk 0:22:29]} 18... Bxg2
{[%clk 0:24:47]} 19. Kxg2 {[%clk 0:22:25]} 19... f5 {[%clk 0:24:41]} 20. e3
{[%clk 0:15:42]} 20... Qe4+ {[%clk 0:21:41]} 21. Qxe4 {[%clk 0:14:46]} 21...
fxe4 {[%clk 0:22:06]} 22. Nd7 {[%clk 0:07:34]} 22... Rfe8 {[%clk 0:22:33]} 23.
Rd6 {[%clk 0:06:43]} 23... Be5 {[%clk 0:19:06]} 24. Rdd1 {[%clk 0:02:56]} 24...
Bc3 {[%clk 0:17:32]} 25. Re2 {[%clk 0:02:04]} 25... Kg7 {[%clk 0:17:34]} 26. Rc2
{[%clk 0:02:04]} 26... Re7 {[%clk 0:13:15]} 27. Rxc3 {[%clk 0:01:26]} 27...
Rexd7 {[%clk 0:13:41]} 28. Rxd7 {[%clk 0:01:15]} 28... Rxd7 {[%clk 0:14:07]} 29.
Rc4 {[%clk 0:01:11]} 29... f5 {[%clk 0:14:28]} 30. Kf1 {[%clk 0:01:11]} 30...
Kf6 {[%clk 0:13:52]} 31. Ke2 {[%clk 0:01:04]} 31... g5 {[%clk 0:12:42]} 32. Rb4
{[%clk 0:00:39]} 32... Ke5 {[%clk 0:11:47]} 33. h3 {[%clk 0:00:43]} 33... h6
{[%clk 0:11:13]} 34. Rc4 {[%clk 0:00:40]} 34... Rd5 {[%clk 0:10:35]} 35. g4
{[%clk 0:00:36]} 35... f4 {[%clk 0:09:42]} 36. exf4+ {[%clk 0:00:34]} 36... gxf4
{[%clk 0:10:06]} 37. f3 {[%clk 0:00:34]} 37... exf3+ {[%clk 0:10:18]} 38. Kxf3
{[%clk 0:00:34]} 38... Rd3+ {[%clk 0:10:38]} 39. Kg2 {[%clk 0:00:36]} 39... Rd2+
{[%clk 0:08:23]} 40. Kf3 {[%clk 0:00:55]} 40... Rd3+ {[%clk 0:08:10]} 41. Kg2
{[%clk 0:00:58]} 41... Rd2+ {[%clk 0:05:19]} 42. Kf3 {[%clk 0:01:12]} 42... Rd3+
{[%clk 0:04:53]} 43. Kg2 {[%clk 0:01:34]} 43... Rd2+ {[%clk 0:04:58]} 44. Kf3
{[%clk 0:01:28]} 1/2-1/2

[Variant "Standard"]
[Site "Europe Echecs"]

[Event "Championnat du monde jeunes U12F"]
[Date "2024.11.15"]
[White "Sri Darshini T"]
[Black "Huang, Lucia"]
[WhiteElo "1681"]
[BlackElo "1621"]
[Round "1.5"]
[Result "1-0"]
[TimeControl "5400+30"]

1. d4 {[%clk 1:30:59]} 1... d5 {[%clk 1:30:54]} 2. c4 {[%clk 1:31:22]} 2... c6
{[%clk 1:31:19]} 3. Nf3 {[%clk 1:31:48]} 3... Nf6 {[%clk 1:31:44]} 4. Nc3 {[%clk
1:32:12]} 4... e6 {[%clk 1:31:33]} 5. Bg5 {[%clk 1:32:29]} 5... Nbd7 {[%clk
1:30:13]} 6. e3 {[%clk 1:32:51]} 6... Bd6 {[%clk 1:27:41]} 7. Qc2 {[%clk
1:31:34]} 7... h6 {[%clk 1:26:04]} 8. Bh4 {[%clk 1:30:14]} 8... O-O {[%clk
1:23:26]} 9. Bd3 {[%clk 1:29:02]} 9... Qc7 {[%clk 1:16:34]} 10. Rc1 {[%clk
1:23:43]} 10... dxc4 {[%clk 1:05:29]} 11. Bxc4 {[%clk 1:23:28]} 11... Nb6 {[%clk
1:02:48]} 12. Bd3 {[%clk 1:17:10]} 12... Nfd5 {[%clk 1:01:35]} 13. Qe2 {[%clk
1:12:15]} 13... Nxc3 {[%clk 0:56:50]} 14. bxc3 {[%clk 1:12:29]} 14... Nd5 {[%clk
0:56:31]} 15. Bg3 {[%clk 1:06:31]} 15... c5 {[%clk 0:51:04]} 16. O-O {[%clk
1:03:57]} 16... b6 {[%clk 0:40:02]} 17. Rfd1 {[%clk 0:56:50]} 17... Bb7 {[%clk
0:40:03]} 18. Bb1 {[%clk 0:51:20]} 18... Rac8 {[%clk 0:34:21]} 19. c4 {[%clk
0:41:54]} 19... Ne7 {[%clk 0:28:04]} 20. Qd3 {[%clk 0:27:38]} 20... f5 {[%clk
0:25:34]} 21. Bxd6 {[%clk 0:23:17]} 21... Qxd6 {[%clk 0:25:57]} 22. Ne5 {[%clk
0:16:47]} 22... Rfd8 {[%clk 0:23:35]} 23. f3 {[%clk 0:16:12]} 23... Qc7 {[%clk
0:19:58]} 24. Qc2 {[%clk 0:13:56]} 24... cxd4 {[%clk 0:17:08]} 25. exd4 {[%clk
0:13:52]} 25... Rd6 {[%clk 0:14:43]} 26. Qf2 {[%clk 0:09:40]} 26... Nc6 {[%clk
0:12:12]} 27. Nxc6 {[%clk 0:07:02]} 27... Qxc6 {[%clk 0:12:20]} 28. Kh1 {[%clk
0:04:55]} 28... Ba6 {[%clk 0:10:30]} 29. Bd3 {[%clk 0:04:16]} 29... Rcd8 {[%clk
0:09:16]} 30. Bf1 {[%clk 0:03:16]} 30... Qd7 {[%clk 0:06:55]} 31. Qe3 {[%clk
0:03:14]} 31... Kh8 {[%clk 0:06:01]} 32. h3 {[%clk 0:01:19]} 32... Rxd4 {[%clk
0:02:34]} 33. Rxd4 {[%clk 0:01:31]} 33... Qxd4 {[%clk 0:03:03]} 34. Qxe6 {[%clk
0:01:38]} 34... Qc5 {[%clk 0:02:19]} 35. Re1 {[%clk 0:01:22]} 35... Qf2 {[%clk
0:01:26]} 36. Qe7 {[%clk 0:00:39]} 36... Qd2 {[%clk 0:01:08]} 37. Re2 {[%clk
0:00:44]} 37... Qd4 {[%clk 0:01:15]} 38. Re1 {[%clk 0:00:54]} 38... Qd2 {[%clk
0:01:07]} 39. Re2 {[%clk 0:01:19]} 39... Qd4 {[%clk 0:00:47]} 40. Re1 {[%clk
0:01:45]} 40... Kh7 {[%clk 0:01:03]} 41. Qf7 {[%clk 0:01:37]} 41... Bc8 {[%clk
0:00:50]} 42. Re7 {[%clk 0:01:12]} 42... Rd7 {[%clk 0:00:44]} 43. Qxf5+ {[%clk
0:01:16]} 1-0

[Variant "Standard"]
[Site "Europe Echecs"]

[Event "Championnat du monde jeunes U12F"]
[Date "2024.11.15"]
[White "Venskaya, Nika"]
[Black "Ivanova, Gabriela"]
[WhiteElo "1871"]
[BlackElo "1680"]
[Round "1.6"]
[Result "1/2-1/2"]
[TimeControl "5400+30"]

1. d4 {[%clk 1:30:56]} 1... d5 {[%clk 1:30:45]} 2. Nf3 {[%clk 1:31:05]} 2... Nf6
{[%clk 1:30:16]} 3. c4 {[%clk 1:31:26]} 3... c6 {[%clk 1:07:26]} 4. Nc3 {[%clk
1:31:46]} 4... Bf5 {[%clk 1:06:33]} 5. cxd5 {[%clk 1:31:30]} 5... cxd5 {[%clk
1:05:52]} 6. Qb3 {[%clk 1:31:55]} 6... Bc8 {[%clk 0:52:00]} 7. Bf4 {[%clk
1:29:11]} 7... a6 {[%clk 0:48:16]} 8. Rc1 {[%clk 1:23:31]} 8... Nc6 {[%clk
0:44:19]} 9. Na4 {[%clk 1:17:51]} 9... e6 {[%clk 0:39:22]} 10. a3 {[%clk
1:07:12]} 10... Be7 {[%clk 0:34:44]} 11. Bd2 {[%clk 0:58:32]} 11... Ne4 {[%clk
0:26:07]} 12. e3 {[%clk 0:57:48]} 12... Nxd2 {[%clk 0:25:48]} 13. Nxd2 {[%clk
0:58:06]} 13... Bd7 {[%clk 0:25:17]} 14. Nc5 {[%clk 0:53:18]} 14... Na5 {[%clk
0:19:46]} 15. Qd1 {[%clk 0:40:58]} 15... O-O {[%clk 0:17:56]} 16. b4 {[%clk
0:40:45]} 16... Bxc5 {[%clk 0:17:20]} 17. Rxc5 {[%clk 0:36:42]} 17... Nc6 {[%clk
0:17:16]} 18. Bd3 {[%clk 0:36:31]} 18... Qe7 {[%clk 0:15:59]} 19. Qb1 {[%clk
0:30:08]} 19... h6 {[%clk 0:14:03]} 20. O-O {[%clk 0:27:38]} 20... a5 {[%clk
0:13:03]} 21. b5 {[%clk 0:19:44]} 21... Nd8 {[%clk 0:11:44]} 22. b6 {[%clk
0:15:44]} 22... e5 {[%clk 0:11:07]} 23. Rxd5 {[%clk 0:15:10]} 23... exd4 {[%clk
0:10:57]} 24. Rxd4 {[%clk 0:14:47]} 24... Nc6 {[%clk 0:10:48]} 25. Rd5 {[%clk
0:11:53]} 25... Be6 {[%clk 0:09:49]} 26. Rb5 {[%clk 0:11:52]} 26... Qxa3 {[%clk
0:09:03]} 27. Nc4 {[%clk 0:09:48]} 27... Bxc4 {[%clk 0:08:24]} 28. Bxc4 {[%clk
0:10:17]} 28... a4 {[%clk 0:07:14]} 29. Bd5 {[%clk 0:08:23]} 29... Rfc8 {[%clk
0:06:45]} 30. h3 {[%clk 0:06:41]} 30... Qe7 {[%clk 0:05:22]} 31. Ba2 {[%clk
0:05:53]} 31... Ra6 {[%clk 0:04:33]} 32. Rd1 {[%clk 0:05:49]} 32... a3 {[%clk
0:04:12]} 33. Qf5 {[%clk 0:05:47]} 33... Rd8 {[%clk 0:03:26]} 34. Rxd8+ {[%clk
0:05:35]} 34... Nxd8 {[%clk 0:03:52]} 35. Qc8 {[%clk 0:04:54]} 35... Kh7 {[%clk
0:02:27]} 36. Qc2+ {[%clk 0:03:20]} 36... Kh8 {[%clk 0:02:40]} 37. Qb3 {[%clk
0:02:32]} 37... Ne6 {[%clk 0:02:28]} 38. Qd5 {[%clk 0:02:18]} 38... Ra8 {[%clk
0:01:57]} 39. Qb3 {[%clk 0:01:54]} 39... Rc8 {[%clk 0:02:01]} 40. Ra5 {[%clk
0:01:09]} 40... Qd6 {[%clk 0:02:05]} 41. Qxa3 {[%clk 0:01:01]} 41... Qxb6 {[%clk
0:01:56]} 42. Rf5 {[%clk 0:00:58]} 42... Kg8 {[%clk 0:01:40]} 43. Rf3 {[%clk
0:00:45]} 43... Qc7 {[%clk 0:01:37]} 44. Qb3 {[%clk 0:00:52]} 44... Qd6 {[%clk
0:01:40]} 45. Rg3 {[%clk 0:00:47]} 45... h5 {[%clk 0:01:35]} 46. Qa4 {[%clk
0:00:33]} 46... b5 47. Qe4 {[%clk 0:00:35]} 47... Ng5 {[%clk 0:01:04]} 48. Qf5
{[%clk 0:00:37]} 48... Rc1+ {[%clk 0:00:59]} 49. Kh2 {[%clk 0:01:06]} 49... h4
{[%clk 0:01:23]} 50. Qxg5 {[%clk 0:01:15]} 50... hxg3+ {[%clk 0:01:35]} 51. fxg3
{[%clk 0:01:35]} 51... Qd1 {[%clk 0:01:57]} 52. g4 {[%clk 0:01:45]} 52... Qh1+
{[%clk 0:02:08]} 53. Kg3 {[%clk 0:02:08]} 53... Qe1+ {[%clk 0:02:19]} 54. Kh2
{[%clk 0:02:10]} 54... Qg1+ {[%clk 0:02:35]} 55. Kg3 {[%clk 0:02:36]} 55... Qe1+
{[%clk 0:02:42]} 56. Kh2 {[%clk 0:02:45]} 56... Qg1+ {[%clk 0:02:17]} 57. Kg3
{[%clk 0:03:11]} 1/2-1/2

[Variant "Standard"]
[Site "Europe Echecs"]

[Event "Championnat du monde jeunes U12F"]
[Date "2024.11.15"]
[White "Liu, Jingyu"]
[Black "Kovalskyy, Alicia"]
[WhiteElo "1680"]
[BlackElo "1871"]
[Round "1.7"]
[Result "1/2-1/2"]
[TimeControl "5400+30"]

1. d4 {[%clk 1:30:57]} 1... d5 {[%clk 1:30:57]} 2. c4 {[%clk 1:31:18]} 2... e6
{[%clk 1:31:23]} 3. Nc3 {[%clk 1:31:41]} 3... Nf6 {[%clk 1:31:48]} 4. cxd5
{[%clk 1:32:04]} 4... exd5 {[%clk 1:32:10]} 5. Bg5 {[%clk 1:32:27]} 5... Be7
{[%clk 1:32:28]} 6. e3 {[%clk 1:32:51]} 6... Nbd7 {[%clk 1:26:09]} 7. Bd3 {[%clk
1:29:48]} 7... c6 {[%clk 1:23:40]} 8. Nf3 {[%clk 1:29:09]} 8... h6 {[%clk
1:21:14]} 9. Bh4 {[%clk 1:28:04]} 9... O-O {[%clk 1:18:06]} 10. O-O {[%clk
1:26:41]} 10... Ne4 {[%clk 1:12:35]} 11. Bxe7 {[%clk 1:23:41]} 11... Qxe7 {[%clk
1:12:33]} 12. Qc2 {[%clk 1:21:57]} 12... Re8 {[%clk 1:03:04]} 13. Rab1 {[%clk
1:16:03]} 13... a5 {[%clk 0:55:18]} 14. Na4 {[%clk 1:09:27]} 14... Ndf6 {[%clk
0:28:58]} 15. Nb6 {[%clk 1:04:16]} 15... Rb8 {[%clk 0:21:17]} 16. Ne5 {[%clk
1:01:00]} 16... Qb4 {[%clk 0:14:11]} 17. Nxc8 {[%clk 0:58:13]} 17... Rbxc8
{[%clk 0:14:32]} 18. f3 {[%clk 0:57:40]} 18... Nd6 {[%clk 0:13:10]} 19. a3
{[%clk 0:57:58]} 19... Qb6 {[%clk 0:13:18]} 20. Rfc1 {[%clk 0:51:44]} 20... Qd8
{[%clk 0:06:57]} 21. Qd2 {[%clk 0:50:58]} 21... Nd7 {[%clk 0:06:34]} 22. Nxd7
{[%clk 0:43:13]} 22... Qxd7 {[%clk 0:07:00]} 23. b4 {[%clk 0:38:30]} 23... axb4
{[%clk 0:06:16]} 24. axb4 {[%clk 0:38:25]} 24... Nf5 {[%clk 0:02:35]} 25. Bxf5
{[%clk 0:37:52]} 25... Qxf5 {[%clk 0:03:02]} 26. Rb3 {[%clk 0:38:11]} 26... Qd7
{[%clk 0:01:41]} 27. Rbc3 {[%clk 0:34:34]} 27... Ra8 {[%clk 0:01:12]} 28. R1c2
{[%clk 0:22:47]} 28... Ra1+ {[%clk 0:01:28]} 29. Rc1 {[%clk 0:22:01]} 29... Raa8
{[%clk 0:00:53]} 30. R1c2 {[%clk 0:13:00]} 30... Ra1+ {[%clk 0:01:00]} 1/2-1/2

[Variant "Standard"]
[Site "Europe Echecs"]